fUST/lending_fUST_20260504
["ID","MTS","AMOUNT","RATE_DAILY","PERIOD"]
[421549661,1777859446000,-150.33054931,0.00014524,2]
[421549688,1777859447000,-817.02414501,0.000148,2]
[421549695,1777859447000,-1976.70625239,0.000148,2]
[421549696,1777859447000,-1999.91634428,0.000148,2]
[421549694,1777859447000,-2186.78825986,0.000148,2]
[421549689,1777859447000,-1818.19478123,0.000148,2]
[421549690,1777859447000,-2147.61572753,0.000148,2]
[421549691,1777859447000,-2033.19501438,0.000148,2]
[421549693,1777859447000,-1813.04442879,0.000148,2]
[421549692,1777859447000,-820.64716117,0.000148,2]
[421549676,1777859447000,-573.50030836,0.00014799,2]
[421549677,1777859447000,-573.50030836,0.00014799,2]
[421549681,1777859447000,-611.73366226,0.00014799,2]
[421549678,1777859447000,-573.50030836,0.00014799,2]
[421549680,1777859447000,-611.73366226,0.00014799,2]
[421549687,1777859447000,-611.73366226,0.00014799,2]
[421549702,1777859447000,-151.42269469,0.00015199,2]
[421549686,1777859447000,-611.73366226,0.00014799,2]
[421549684,1777859447000,-611.73366226,0.00014799,2]
[421549685,1777859447000,-611.73366226,0.00014799,2]
[421549683,1777859447000,-611.73366226,0.00014799,2]
[421549679,1777859447000,-611.73366226,0.00014799,2]
[421549697,1777859447000,-506.99616832,0.000148,2]
[421549682,1777859447000,-611.73366226,0.00014799,2]
[421549701,1777859447000,-191.464418,0.00015068,2]
[421549699,1777859447000,-3583.3361514,0.00015064,2]
[421549722,1777859447000,-985.72242287,0.000159,2]
[421549719,1777859447000,-2230.315306,0.00015747,2]
[421549724,1777859447000,-734.72601119,0.0001595,30]
[421549725,1777859447000,-10706.77657384,0.00016,2]
[421549723,1777859447000,-2100.0181676,0.00015917,2]
[421549721,1777859447000,-3583.3361514,0.00015831,2]
[421549718,1777859447000,-2438.35338459,0.0001568,2]
[421549710,1777859447000,-557.5788265,0.00015254,2]
[421549709,1777859447000,-2150.738,0.00015199,2]
[421549708,1777859447000,-540.47517115,0.00015199,2]
[421549720,1777859447000,-2277.3913599,0.00015771,2]
[421549713,1777859447000,-185.0,0.00015425,2]
[421549703,1777859447000,-162.75953991,0.00015199,2]
[421549711,1777859447000,-328.10328528,0.00015292,2]
[421549715,1777859447000,-150.068,0.00015425,2]
[421549717,1777859447000,-160.0,0.00015471,2]
[421549714,1777859447000,-444.701,0.00015425,2]
[421549706,1777859447000,-447.0188221,0.00015199,2]
[421549707,1777859447000,-537.6845,0.00015199,2]
[421549705,1777859447000,-283.79887499,0.00015199,2]
[421549712,1777859447000,-687.18408426,0.00015309,2]
[421549716,1777859447000,-150.153,0.00015425,2]
[421549756,1777859797000,3443.78048633,0.000219,120]
[421550142,1777860638000,-759.91,0.00013698,2]
[421550132,1777860638000,-3897.7650755,0.00011659,2]
[421550140,1777860638000,-759.91,0.00013698,2]
[421550134,1777860638000,-193.71577226,0.00011777,2]
[421550143,1777860638000,-759.91,0.00013698,2]
[421550138,1777860638000,-237.76652647,0.00012047,2]
[421550136,1777860638000,-586.0,0.00011777,2]
[421550149,1777860638000,-501.70970688,0.00013698,2]
[421550150,1777860638000,-1000.0,0.00013699,2]
[421550145,1777860638000,-759.91,0.00013698,2]
[421550152,1777860638000,-280.56450123,0.00014047,2]
[421550153,1777860638000,-759.91,0.00014797,2]
[421550155,1777860638000,-759.91,0.00014799,2]
[421550156,1777860638000,-172.658017,0.00015068,2]
[421550158,1777860638000,-8834.6,0.000151,2]
[421550160,1777860638000,-152.0,0.00015151,7]
[421550147,1777860638000,-502.78181248,0.00013698,2]
[421550172,1777860639000,-506.08378505,0.00015234,2]
[421550173,1777860639000,-826.0,0.0001527,2]
[421550170,1777860639000,-501.23127377,0.00015234,2]
[421550161,1777860639000,-152.0,0.00015156,7]
[421550165,1777860639000,-152.0,0.00015156,7]
[421550168,1777860639000,-2150.738,0.00015199,2]
[421550167,1777860639000,-152.0,0.0001516,7]
[421550175,1777860639000,-160.0,0.00015458,2]
[421550177,1777860639000,-160.0,0.00015458,2]
[421550179,1777860639000,-5068.55695893,0.00015597,2]
[421550182,1777860639000,-1625.56892306,0.0001568,2]
[421550180,1777860639000,-2188.65940043,0.000156,2]
[421550184,1777860639000,-48331.32065737,0.00015697,2]
[421550163,1777860639000,-152.0,0.00015156,7]
[421550343,1777860641000,-31979.6,0.00015697,2]
[421550418,1777860643000,-34085.26027022,0.00015697,2]
[421550415,1777860643000,-30093.37001638,0.00015697,2]
[421550413,1777860643000,-1083.71261537,0.0001568,2]
[421550823,1777860647000,-722.47507691,0.0001568,2]
[421550828,1777860647000,-110361.11213821,0.00015697,2]
[421550826,1777860647000,-177828.37873722,0.00015697,2]
[421551902,1777861302000,408.64,0.00021917,120]
[421551934,1777861826000,2137.62001254,0.0001,2]
[421551935,1777861828000,4987.60031123,0.0001,2]
[421551991,1777861834000,-597.0,0.00012514,2]
[421551993,1777861834000,-239.78764245,0.00012704,2]
[421551995,1777861834000,-912.21831481,0.00013696,2]
[421551989,1777861834000,-4540.02272133,0.00012514,2]
[421551980,1777861834000,-716.83765531,0.00012389,2]
[421551983,1777861834000,-312.6147168,0.00012514,2]
[421552016,1777861838000,-287.78168519,0.00013696,2]
[421552019,1777861838000,-300.0,0.00013697,2]
[421552018,1777861838000,-300.0,0.00013697,2]
[421552017,1777861838000,-300.0,0.00013697,2]
[421552037,1777861839000,-500.0,0.00015255,7]
[421552036,1777861839000,-192.97834081,0.00015255,7]
[421552038,1777861839000,-151.5,0.00015255,7]
[421552040,1777861839000,-276.10161052,0.00015255,7]
[421552039,1777861839000,-500.0,0.00015255,7]
[421552047,1777861839000,-500.0,0.00015255,7]
[421552046,1777861839000,-500.0,0.00015255,7]
[421552042,1777861839000,-500.0,0.00015255,7]
[421552043,1777861839000,-250.57912329,0.00015255,7]
[421552044,1777861839000,-151.5,0.00015255,7]
[421552035,1777861839000,-2150.738,0.00015199,2]
[421552041,1777861839000,-500.0,0.00015255,7]
[421552031,1777861839000,-3680.34133089,0.00014675,2]
[421552032,1777861839000,-282.94941809,0.00014704,2]
[421552026,1777861839000,-1000.0,0.00014291,2]
[421552029,1777861839000,-208.7923205,0.00014476,2]
[421552033,1777861839000,-192.654887,0.00015068,2]
[421552034,1777861839000,-503.36773149,0.00015158,5]
[421552048,1777861839000,-363.69254453,0.00015255,7]
[421552027,1777861839000,-2347.10318257,0.00014375,2]
[421552028,1777861839000,-2725.23696548,0.00014475,2]
[421552023,1777861839000,-701.16736615,0.00014175,2]
[421552024,1777861839000,-173.56365746,0.00014275,2]
[421552025,1777861839000,-1539.63850835,0.00014275,2]
[421552022,1777861839000,-1000.0,0.00013699,2]
[421552021,1777861839000,-215.283607,0.00013699,2]
[421552020,1777861839000,-300.0,0.00013697,2]
[421552030,1777861839000,-3013.72225669,0.00014575,2]
[421552057,1777861839000,-500.24358424,0.00015294,2]
[421552045,1777861839000,-281.05257483,0.00015255,7]
[421552060,1777861839000,-500.24358424,0.00015294,2]
[421552077,1777861839000,-500.24358424,0.00015294,2]
[421552078,1777861839000,-49128.80898084,0.00015295,2]
[421552079,1777861839000,-281.01403108,0.00015295,2]
[421552058,1777861839000,-500.24358424,0.00015294,2]
[421552074,1777861839000,-500.0,0.00015294,2]
[421552075,1777861839000,-500.24358424,0.00015294,2]
[421552071,1777861839000,-500.24358424,0.00015294,2]
[421552070,1777861839000,-390.00280099,0.00015294,2]
[421552061,1777861839000,-500.0,0.00015294,2]
[421552065,1777861839000,-500.0,0.00015294,2]
[421552067,1777861839000,-500.0,0.00015294,2]
[421552069,1777861839000,-500.24358424,0.00015294,2]
[421552068,1777861839000,-500.24358424,0.00015294,2]
[421552063,1777861839000,-500.24358424,0.00015294,2]
[421552076,1777861839000,-500.24358424,0.00015294,2]
[421552064,1777861839000,-500.24358424,0.00015294,2]
[421552072,1777861839000,-500.24358424,0.00015294,2]
[421552073,1777861839000,-500.24358424,0.00015294,2]
[421552062,1777861839000,-500.0,0.00015294,2]
[421552055,1777861839000,-500.24358424,0.00015294,2]
[421552054,1777861839000,-500.24358424,0.00015294,2]
[421552056,1777861839000,-500.24358424,0.00015294,2]
[421552052,1777861839000,-500.0,0.00015294,2]
[421552053,1777861839000,-500.24358424,0.00015294,2]
[421552051,1777861839000,-500.24358424,0.00015294,2]
[421552050,1777861839000,-509.25686561,0.00015294,2]
[421552059,1777861839000,-500.0,0.00015294,2]
[421552049,1777861839000,-500.0,0.00015294,2]
[421552066,1777861839000,-500.24358424,0.00015294,2]
[421552154,1777861841000,-399.385,0.00015295,2]
[421552261,1777861844000,-2060.3243339,0.00015295,2]
[421552263,1777861844000,-2535.75258541,0.00015295,2]
[421552264,1777861844000,-4479.15198489,0.00015295,2]
[421552265,1777861844000,-29670.55162322,0.00015295,2]
[421552262,1777861844000,-1074.91166387,0.00015295,2]
[421552282,1777861847000,-500.0,0.00015294,2]
[421552281,1777861847000,-500.0,0.00015294,2]
[421552292,1777861847000,-518.45131119,0.00015294,2]
[421552291,1777861847000,-500.0,0.00015294,2]
[421552290,1777861847000,-416.52672459,0.00015294,2]
[421552279,1777861847000,-500.0,0.00015294,2]
[421552278,1777861847000,-500.0,0.00015294,2]
[421552273,1777861847000,-200.0,0.00014529,2]
[421552276,1777861847000,-500.0,0.00015294,2]
[421552275,1777861847000,-200.0,0.00015017,2]
[421552274,1777861847000,-602.1607659,0.000149,2]
[421552277,1777861847000,-500.0,0.00015294,2]
[421552272,1777861847000,-250.77,0.00014041,2]
[421552280,1777861847000,-500.0,0.00015294,2]
[421552283,1777861847000,-500.0,0.00015294,2]
[421552294,1777861847000,-500.0,0.00015294,2]
[421552289,1777861847000,-500.0,0.00015294,2]
[421552287,1777861847000,-500.0,0.00015294,2]
[421552301,1777861847000,-500.0,0.00015294,2]
[421552299,1777861847000,-500.0,0.00015294,2]
[421552300,1777861847000,-500.0,0.00015294,2]
[421552296,1777861847000,-500.0,0.00015294,2]
[421552297,1777861847000,-500.0,0.00015294,2]
[421552298,1777861847000,-500.0,0.00015294,2]
[421552302,1777861847000,-286.54937326,0.00015294,2]
[421552293,1777861847000,-500.0,0.00015294,2]
[421552285,1777861847000,-500.0,0.00015294,2]
[421552286,1777861847000,-500.0,0.00015294,2]
[421552288,1777861847000,-500.0,0.00015294,2]
[421552284,1777861847000,-500.0,0.00015294,2]
[421552295,1777861847000,-500.0,0.00015294,2]
[421552375,1777863031000,-1000.0,0.00013699,2]
[421552356,1777863031000,-500.0,0.00012138,2]
[421552363,1777863031000,-4500.0,0.00012138,2]
[421552373,1777863031000,-1000.0,0.00013699,2]
[421552376,1777863031000,-277.20100094,0.00014386,2]
[421552381,1777863031000,-1.67462138,0.00014574,2]
[421552378,1777863031000,-568.25537862,0.00014574,2]
[421552383,1777863031000,-2717.76402692,0.00014892,2]
[421552369,1777863031000,-300.0,0.00013698,2]
[421552371,1777863031000,-1200.0,0.00013698,2]
[421552367,1777863031000,-234.91610249,0.00012386,2]
[421552385,1777863031000,-679.23543468,0.00014892,2]
[421552401,1777863031000,-1411.16296147,0.00014892,2]
[421552403,1777863031000,-1071.69446352,0.00014896,2]
[421552365,1777863031000,-915.70965651,0.00012261,2]
[421552526,1777863038000,-406.86337066,0.000149,2]
[421552525,1777863038000,-247.89841225,0.000149,2]
[421552522,1777863038000,-153.42044573,0.000149,2]
[421552523,1777863038000,-154.06893546,0.000149,2]
[421552524,1777863038000,-155.75702945,0.000149,2]
[421552527,1777863038000,-463.05568511,0.000149,2]
[421552531,1777863038000,-2133.0,0.0001499,2]
[421552521,1777863038000,-150.92767212,0.000149,2]
[421552533,1777863038000,-421.79650453,0.00014991,2]
[421552532,1777863038000,-500.0,0.00014991,2]
[421552519,1777863038000,-29683.25693929,0.00014896,2]
[421552518,1777863038000,-9486.04282915,0.00014896,2]
[421552517,1777863038000,-3337.73803097,0.00014896,2]
[421552505,1777863038000,-5685.35925915,0.00014896,2]
[421552530,1777863038000,-155.12128368,0.000149,2]
[421552534,1777863038000,-500.0,0.00014991,2]
[421552529,1777863038000,-441.54471588,0.000149,2]
[421552520,1777863038000,-634.0,0.00014896,2]
[421552537,1777863038000,-500.0,0.00014991,2]
[421552553,1777863038000,-124895.41713595,0.00014992,2]
[421552551,1777863038000,-500.0,0.00014991,2]
[421552552,1777863038000,-201.58631696,0.00014991,2]
[421552550,1777863038000,-500.0,0.00014991,2]
[421552540,1777863038000,-573.00196069,0.00014991,2]
[421552542,1777863038000,-500.0,0.00014991,2]
[421552548,1777863038000,-500.0,0.00014991,2]
[421552544,1777863038000,-500.0,0.00014991,2]
[421552541,1777863038000,-500.0,0.00014991,2]
[421552545,1777863038000,-500.0,0.00014991,2]
[421552546,1777863038000,-500.0,0.00014991,2]
[421552539,1777863038000,-155.91909696,0.00014991,2]
[421552549,1777863038000,-500.0,0.00014991,2]
[421552543,1777863038000,-500.0,0.00014991,2]
[421552538,1777863038000,-500.0,0.00014991,2]
[421552536,1777863038000,-500.0,0.00014991,2]
[421552547,1777863038000,-500.0,0.00014991,2]
[421552535,1777863038000,-500.0,0.00014991,2]
[421552559,1777863040000,-726.24112291,0.00014992,2]
[421552560,1777863040000,-1346.44188268,0.00014992,2]
[421552558,1777863040000,-2547.06363544,0.00014992,2]
[421552587,1777863043000,-3678.4336492,0.00014992,2]
[421552615,1777863046000,-152.0,0.00014045,7]
[421552614,1777863046000,-152.0,0.00014045,7]
[421552617,1777863046000,-500.0,0.00014895,2]
[421552618,1777863046000,-33.92404718,0.00014895,2]
[421552616,1777863046000,-152.0,0.00014045,7]
[421552626,1777863531000,182.75760131,0.00019077,120]
[421552683,1777864231000,-3762.28123253,0.00012265,2]
[421552680,1777864231000,-801.56076895,0.00012142,2]
[421552678,1777864231000,-436.15799852,0.00012021,2]
[421552818,1777864243000,-151.0,0.00014507,2]
[421552825,1777864243000,-546.18,0.00014688,2]
[421552826,1777864243000,-546.18,0.00014688,2]
[421552837,1777864243000,-500.0,0.0001469,2]
[421552827,1777864243000,-546.18,0.00014688,2]
[421552836,1777864243000,-500.0,0.0001469,2]
[421552828,1777864243000,-546.18,0.0001469,2]
[421552830,1777864243000,-500.0,0.0001469,2]
[421552838,1777864243000,-500.0,0.0001469,2]
[421552829,1777864243000,-500.0,0.0001469,2]
[421552832,1777864243000,-470.87563429,0.0001469,2]
[421552831,1777864243000,-500.0,0.0001469,2]
[421552834,1777864243000,-500.0,0.0001469,2]
[421552833,1777864243000,-500.0,0.0001469,2]
[421552835,1777864243000,-435.35772098,0.0001469,2]
[421552817,1777864243000,-456.2076372,0.00014489,2]
[421552807,1777864243000,-595.0,0.00012389,2]
[421552820,1777864243000,-546.36286446,0.00014688,2]
[421552840,1777864243000,-500.0,0.0001469,2]
[421552806,1777864243000,-1237.71876747,0.00012265,2]
[421552808,1777864243000,-230.28854006,0.00012452,2]
[421552811,1777864243000,-1000.0,0.00013699,2]
[421552809,1777864243000,-156.0,0.00013699,2]
[421552810,1777864243000,-1000.0,0.00013699,2]
[421552814,1777864243000,-3611.71798104,0.00014375,2]
[421552812,1777864243000,-1489.60175476,0.00014175,2]
[421552824,1777864243000,-546.18,0.00014688,2]
[421552815,1777864243000,-271.74047727,0.00014452,2]
[421552821,1777864243000,-546.18,0.00014688,2]
[421552816,1777864243000,-3623.63065575,0.00014475,2]
[421552823,1777864243000,-546.18,0.00014688,2]
[421552813,1777864243000,-3279.74019687,0.00014275,2]
[421552822,1777864243000,-546.18,0.00014688,2]
[421552819,1777864243000,-3967.52111475,0.00014575,2]
[421552850,1777864243000,-500.0,0.0001469,2]
[421552865,1777864243000,-500.0,0.0001469,2]
[421552851,1777864243000,-500.0,0.0001469,2]
[421552860,1777864243000,-500.0,0.0001469,2]
[421552863,1777864243000,-500.0,0.0001469,2]
[421552858,1777864243000,-500.0,0.0001469,2]
[421552867,1777864243000,-500.0,0.0001469,2]
[421552868,1777864243000,-500.0,0.0001469,2]
[421552870,1777864243000,-500.0,0.0001469,2]
[421552869,1777864243000,-500.0,0.0001469,2]
[421552871,1777864243000,-500.0,0.0001469,2]
[421552873,1777864243000,-3377.65193773,0.00014691,2]
[421552872,1777864243000,-500.0,0.0001469,2]
[421552875,1777864243000,-651.10137249,0.00014691,2]
[421552874,1777864243000,-4327.3461807,0.00014691,2]
[421552877,1777864243000,-500.0,0.00014691,2]
[421552878,1777864243000,-500.0,0.00014691,2]
[421552852,1777864243000,-500.0,0.0001469,2]
[421552861,1777864243000,-500.0,0.0001469,2]
[421552864,1777864243000,-500.0,0.0001469,2]
[421552862,1777864243000,-500.0,0.0001469,2]
[421552866,1777864243000,-500.0,0.0001469,2]
[421552839,1777864243000,-500.0,0.0001469,2]
[421552841,1777864243000,-493.21804922,0.0001469,2]
[421552847,1777864243000,-500.0,0.0001469,2]
[421552855,1777864243000,-405.66591036,0.0001469,2]
[421552842,1777864243000,-500.0,0.0001469,2]
[421552849,1777864243000,-500.0,0.0001469,2]
[421552848,1777864243000,-500.0,0.0001469,2]
[421552844,1777864243000,-500.0,0.0001469,2]
[421552846,1777864243000,-500.0,0.0001469,2]
[421552845,1777864243000,-500.0,0.0001469,2]
[421552853,1777864243000,-500.0,0.0001469,2]
[421552856,1777864243000,-500.0,0.0001469,2]
[421552854,1777864243000,-500.0,0.0001469,2]
[421552876,1777864243000,-295.25755317,0.00014691,2]
[421552857,1777864243000,-500.0,0.0001469,2]
[421552843,1777864243000,-500.0,0.0001469,2]
[421552880,1777864244000,-500.0,0.00014691,2]
[421552879,1777864244000,-455.77096074,0.00014691,2]
[421552881,1777864244000,-500.0,0.00014691,2]
[421552886,1777864244000,-500.0,0.00014691,2]
[421552887,1777864244000,-500.0,0.00014691,2]
[421552883,1777864244000,-500.0,0.00014691,2]
[421552885,1777864244000,-500.0,0.00014691,2]
[421552882,1777864244000,-500.0,0.00014691,2]
[421552889,1777864244000,-500.0,0.00014691,2]
[421552884,1777864244000,-500.0,0.00014691,2]
[421552897,1777864244000,-500.0,0.00014691,2]
[421552892,1777864244000,-500.0,0.00014691,2]
[421552888,1777864244000,-309.14336787,0.00014691,2]
[421552896,1777864244000,-500.0,0.00014691,2]
[421552901,1777864244000,-200.0,0.00014691,2]
[421552894,1777864244000,-500.0,0.00014691,2]
[421552895,1777864244000,-500.0,0.00014691,2]
[421552891,1777864244000,-500.0,0.00014691,2]
[421552902,1777864244000,-300900.19386483,0.00014692,2]
[421552890,1777864244000,-500.0,0.00014691,2]
[421552900,1777864244000,-500.0,0.00014691,2]
[421552899,1777864244000,-500.0,0.00014691,2]
[421552898,1777864244000,-616.40035751,0.00014691,2]
[421552893,1777864244000,-500.0,0.00014691,2]
[421552910,1777864246000,-152.0,0.00014306,7]
[421552911,1777864246000,-128.73898183,0.00014692,2]
[421552908,1777864246000,-152.0,0.00014306,7]
[421552909,1777864246000,-5416.46916998,0.00014692,2]
[421552907,1777864246000,-152.0,0.00014306,7]
[421552918,1777864875000,-300.0,0.00011481,2]
[421552919,1777864876000,-10.92089355,0.00011482,2]
[421552976,1777865432000,-300.0,0.0001118,30]
[421552974,1777865432000,-300.0,0.0001118,25]
[421552969,1777865432000,-5000.0,0.0001114,2]
[421552984,1777865432000,-516.3158707,0.00013699,2]
[421552980,1777865432000,-284.58186641,0.00013482,2]
[421552972,1777865432000,-576.0,0.0001114,2]
[421552982,1777865432000,-325.6623219,0.0001369,2]
[421552978,1777865432000,-241.17107323,0.00011482,2]
[421552986,1777865435000,2137.62001254,0.0001,2]
[421552991,1777865438000,-4681.54622423,0.0001,2]
[421553043,1777865443000,-152.0,0.0001431,7]
[421553035,1777865443000,-306.054087,0.0001,2]
[421553048,1777865443000,-152.0,0.0001431,7]
[421553037,1777865443000,-1000.0,0.00013699,2]
[421553047,1777865443000,-152.0,0.0001431,7]
[421553036,1777865443000,-483.6841293,0.00013699,2]
[421553039,1777865443000,-152.0,0.0001431,7]
[421553038,1777865443000,-1354.47637188,0.00014291,2]
[421553044,1777865443000,-152.0,0.0001431,7]
[421553074,1777865443000,-639.07376946,0.00014392,2]
[421553050,1777865443000,-152.0,0.00014315,7]
[421553076,1777865443000,-42731.33586621,0.00014392,2]
[421553071,1777865443000,-729.67770619,0.00014392,2]
[421553060,1777865443000,-1195.92778728,0.00014392,2]
[421553041,1777865443000,-152.0,0.0001431,7]
[421553056,1777865443000,-500.0,0.00014391,2]
[421553052,1777865443000,-152.0,0.00014315,7]
[421553054,1777865443000,-152.0,0.00014315,7]
[421553058,1777865443000,-2941.30285293,0.00014392,2]
[421553141,1777865446000,-5840.32374841,0.00014392,2]
[421553138,1777865446000,-2487.90768483,0.00014248,2]
[421553139,1777865446000,-1312.38359426,0.00014248,2]
[421553140,1777865446000,-90775.12308435,0.00014392,2]
[421553278,1777866641000,-473.74218606,0.00011063,2]
[421553277,1777866641000,-1509.5865512,0.00011063,2]
[421553317,1777866642000,-500.0,0.00014087,2]
[421553307,1777866642000,-500.0,0.00014087,2]
[421553308,1777866642000,-500.0,0.00014087,2]
[421553309,1777866642000,-397.20661287,0.00014087,2]
[421553310,1777866642000,-500.0,0.00014087,2]
[421553311,1777866642000,-500.0,0.00014087,2]
[421553313,1777866642000,-500.0,0.00014087,2]
[421553314,1777866642000,-500.0,0.00014087,2]
[421553312,1777866642000,-500.0,0.00014087,2]
[421553330,1777866642000,-500.0,0.00014087,2]
[421553318,1777866642000,-500.0,0.00014087,2]
[421553316,1777866642000,-500.0,0.00014087,2]
[421553328,1777866642000,-500.0,0.00014087,2]
[421553331,1777866642000,-500.0,0.00014087,2]
[421553320,1777866642000,-500.0,0.00014087,2]
[421553306,1777866642000,-500.0,0.00014087,2]
[421553329,1777866642000,-500.0,0.00014087,2]
[421553322,1777866642000,-500.0,0.00014087,2]
[421553321,1777866642000,-500.0,0.00014087,2]
[421553315,1777866642000,-500.0,0.00014087,2]
[421553305,1777866642000,-500.0,0.00014087,2]
[421553295,1777866642000,-1000.0,0.00013699,2]
[421553298,1777866642000,-6735.60479047,0.000139,2]
[421553279,1777866642000,-16.67126274,0.00011063,2]
[421553280,1777866642000,-2980.38529068,0.00011175,2]
[421553281,1777866642000,-2019.61470932,0.00011175,2]
[421553287,1777866642000,-152.0,0.00013672,7]
[421553282,1777866642000,-152.97,0.00011201,10]
[421553283,1777866642000,-236.24043621,0.00011517,2]
[421553285,1777866642000,-269.69,0.00013517,2]
[421553286,1777866642000,-278.76371473,0.00013517,2]
[421553289,1777866642000,-152.0,0.00013676,7]
[421553284,1777866642000,-456.2076372,0.00012864,2]
[421553299,1777866642000,-5492.03761436,0.000139,2]
[421553301,1777866642000,-1545.86155023,0.00013988,2]
[421553300,1777866642000,-6451.35630029,0.000139,2]
[421553302,1777866642000,-4116.42660663,0.0001399,2]
[421553319,1777866642000,-500.0,0.00014087,2]
[421553304,1777866642000,-578.53813974,0.00014087,2]
[421553296,1777866642000,-1000.0,0.00013699,2]
[421553297,1777866642000,-2626.73593125,0.000139,2]
[421553303,1777866642000,-18797.41429912,0.00014,3]
[421553293,1777866642000,-152.0,0.0001368,7]
[421553323,1777866642000,-500.0,0.00014087,2]
[421553291,1777866642000,-152.0,0.00013676,7]
[421553325,1777866642000,-500.0,0.00014087,2]
[421553357,1777866642000,-500.0,0.00014089,2]
[421553355,1777866642000,-500.0,0.00014089,2]
[421553352,1777866642000,-500.0,0.00014087,2]
[421553353,1777866642000,-500.0,0.00014087,2]
[421553354,1777866642000,-500.0,0.00014087,2]
[421553359,1777866642000,-500.0,0.00014089,2]
[421553360,1777866642000,-500.0,0.00014089,2]
[421553358,1777866642000,-500.0,0.00014089,2]
[421553364,1777866642000,-500.0,0.00014089,2]
[421553366,1777866642000,-500.0,0.00014089,2]
[421553363,1777866642000,-500.0,0.00014089,2]
[421553365,1777866642000,-500.0,0.00014089,2]
[421553371,1777866642000,-1663428.04073026,0.0001409,2]
[421553368,1777866642000,-500.0,0.00014089,2]
[421553367,1777866642000,-500.0,0.00014089,2]
[421553370,1777866642000,-548.2240857,0.0001409,2]
[421553369,1777866642000,-499.44407508,0.00014089,2]
[421553372,1777866642000,-4089.72413649,0.0001409,2]
[421553327,1777866642000,-500.0,0.00014087,2]
[421553350,1777866642000,-500.0,0.00014087,2]
[421553362,1777866642000,-500.0,0.00014089,2]
[421553356,1777866642000,-316.93753487,0.00014089,2]
[421553351,1777866642000,-500.0,0.00014087,2]
[421553326,1777866642000,-500.0,0.00014087,2]
[421553324,1777866642000,-500.0,0.00014087,2]
[421553333,1777866642000,-500.0,0.00014087,2]
[421553334,1777866642000,-500.0,0.00014087,2]
[421553361,1777866642000,-500.0,0.00014089,2]
[421553340,1777866642000,-500.0,0.00014087,2]
[421553337,1777866642000,-500.0,0.00014087,2]
[421553338,1777866642000,-500.0,0.00014087,2]
[421553335,1777866642000,-500.0,0.00014087,2]
[421553341,1777866642000,-500.0,0.00014087,2]
[421553332,1777866642000,-500.0,0.00014087,2]
[421553336,1777866642000,-500.0,0.00014087,2]
[421553343,1777866642000,-500.0,0.00014087,2]
[421553342,1777866642000,-500.0,0.00014087,2]
[421553345,1777866642000,-500.0,0.00014087,2]
[421553344,1777866642000,-500.0,0.00014087,2]
[421553346,1777866642000,-601.60085884,0.00014087,2]
[421553348,1777866642000,-500.0,0.00014087,2]
[421553349,1777866642000,-500.0,0.00014087,2]
[421553347,1777866642000,-169.15665715,0.00014087,2]
[421553339,1777866642000,-500.0,0.00014087,2]
[421553481,1777866644000,-3576.91254535,0.0001409,2]
[421553479,1777866644000,-527.37060269,0.0001409,2]
[421553540,1777866647000,-7071.9370934,0.0001409,2]
[421553541,1777866647000,-6439.79107111,0.0001409,2]
[421553548,1777866994000,1000.0,0.00021,120]
[421553624,1777867832000,-161.82,0.0001313,2]
[421553617,1777867832000,-604.0,0.00012961,2]
[421553615,1777867832000,-455.527943,0.0001287,2]
[421553613,1777867832000,-1404.58131835,0.00012831,2]
[421553632,1777867833000,-152.0,0.00013628,7]